Cogmind - Beta 17 @@@ ROGUE MODE // 2026.06.25 @ 16:44:53 Player: Cynthion21x Result: Core destroyed Performance ------------- Evolutions (0) 0 Regions Visited (2) 400 Robots Destroyed (5) 25 Value Destroyed (100) 100 Prototype IDs (0) 0 Alien Tech Used (0) 0 Bonus (0) 0 TOTAL SCORE: 525 Bonus ------- None Cogmind --------- Core Integrity 0/250 Matter 282/300 Energy 100/100 System Corruption 7% Temperature Cool (0) Movement Core (50) Location -10/Mines Parts ------- > --- POWER (1) -------- (None) > --- PROPULSION (2) --- (None) > --- UTILITY (2) ------ (None) > --- WEAPON (2) ------- (None) > --- INVENTORY (5) ---- Wheel Wheel Experimental Sensor Array EM Pulse Gun Peak State ------------ > --- POWER ------------ Light Ion Engine > --- PROPULSION ------- Wheel Wheel > --- UTILITY ---------- (None) > --- WEAPON ----------- EM Pulse Gun EM Pulse Gun > --- INVENTORY -------- Aluminum Leg Aluminum Leg Flight Unit Experimental Sensor Array Light Assault Rifle [Rating: 6] Favorites ----------- Power Light Ion Engine Engine Light Ion Engine Propulsion Wheel Leg Aluminum Leg Wheel Wheel Flight Unit Flight Unit Utility None Weapon EM Pulse Gun Energy Gun EM Pulse Gun Ballistic Gun Light Assault Rifle Build | -11 -10 -10 ------- Run | Yrd Mat Min Slots Evolved . | . . . Power . | . . . Propulsion . | . . . Utility . | . . . Weapon . | . . . Parts Attached 10 | 5 1 4 Power 2 | 1 . 1 Engine 2 | 1 . 1 Core . | . . . Reactor . | . . . Propulsion 5 | 2 1 2 Treads . | . . . Leg 2 | . . 2 Wheel 2 | 2 . . Hover . | . . . Flight 1 | . 1 . Utility . | . . . Device . | . . . Storage . | . . . Processor . | . . . Hackware . | . . . Protection . | . . . Artifact . | . . . Weapon 3 | 2 . 1 Energy Gun 2 | 2 . . Energy Cannon . | . . . Ballistic Gun 1 | . . 1 Ballistic Cannon . | . . . Launcher . | . . . Special Weapon . | . . . Impact Weapon . | . . . Slashing Weapon . | . . . Piercing Weapon . | . . . Special Melee Weapon . | . . . Unidentified Prototypes . | . . . Parts Lost 6 | . . 6 Power 2 | . . 2 Propulsion 2 | . . 2 Utility . | . . . Weapon 2 | . . 2 Highest Loss Streak 6 | . . 6 To Critical Strikes . | . . . Average Backups 4 | 2 3 4 Power . | . . . Propulsion 2 | 1 2 2 Utility . | . . . Weapon 1 | 1 1 1 Tool/Special . | . . . Unused Backups 1 | . . 1 Power . | . . . Propulsion . | . . . Utility 1 | . . 1 Weapon . | . . . Tool/Special . | . . . Average Slot Usage (%) 64 | . 66 63 Engine 12 | . 14 12 Leg 3 | . . 4 Wheel 21 | . 19 22 Flight 1 | . 4 . Energy Gun 21 | . 28 19 Ballistic Gun 3 | . . 4 Peak Build Rating 6 | 5 5 6 Average Rating 4 | 2 4 5 On Entrance 3 | . 5 4 Avg Prop Armor Cover (%) . | . . . Naked Turns 1 | . . 1 Heaviest Build 7 | 7 7 7 Greatest Support 20 | 20 20 20 Greatest Overweight (x) 1 | . 1 . Average Overweight (x) . | . . . Largest Inventory Capacity 5 | 5 5 5 Average Capacity 5 | 5 5 5 Most Carried 5 | 5 5 5 Average Carried 4 | 2 3 4 Final Capacity 5 | 5 5 5 Final Carried 5 | 3 5 4 Class Distribution -------------------- 100% | Mutant Dominant Class ---------------- Mutant | -10/Materials Mutant | -10/Mines Resources | -11 -10 -10 ----------- Run | Yrd Mat Min Matter Collected 280 | 250 . 30 Remotely . | . . . Salvage Created 119 | 50 20 49 Parts 8 | 2 . 6 Haulers Intercepted . | . . . Recyclers Shooed . | . . . Parts Field Recycled . | . . . Retrieved Matter . | . . . Parts Self-Destructed . | . . . Prevented . | . . . Parts Restored . | . . . Kills | -11 -10 -10 ------- Run | Yrd Mat Min Combat Hostiles Destroyed 4 | 1 . 3 Guns 4 | 1 . 3 Classes Destroyed 3 | 1 1 1 Watcher 1 | . 1 . Swarmer 3 | . . 3 Grunt 1 | 1 . . Best Kill Streak 3 | 1 1 3 Combat Bots Only 3 | 1 . 3 Max Kills in Single Turn 1 | 1 1 1 Gunslinging . | . . . Exploded . | . . . Melee . | . . . Uniques/NPCs Destroyed . | . . . Combat | -11 -10 -10 -------- Run | Yrd Mat Min Hostile Shots Fired 77 | 3 . 74 Missed 26 | . . 26 Hits 51 | 3 . 48 Melee 11 | . . 11 Projectile 40 | 3 . 37 Part Disruptions 1 | . . 1 Damage Taken 760 | 36 . 724 Core 251 | 36 . 215 Absorbed by Shields . | . . . Core Remaining (%) 85 | 85 . . Volleys Fired 15 | 2 6 7 Largest 2 | 2 2 2 Hottest 80 | 80 80 80 Shots Fired 28 | 4 12 12 Gun 28 | 4 12 12 Cannon . | . . . Launcher . | . . . Special . | . . . Kinetic 4 | . . 4 Thermal . | . . . Explosive . | . . . Electromagnetic 24 | 4 12 8 Robot Hit Streak 3 | 2 3 3 Robot Miss Streak 4 | 1 4 2 Penetration Max . | . . . Secondary Targets 2 | . . 2 Max Gunslinging Chain 1 | . . 1 Shots Hit Robots 13 | 2 5 6 Core Hits 10 | 2 1 7 Critical Kills . | . . . Critical Parts Destroyed . | . . . Critical Strikes . | . . . Melee Attacks . | . . . Impact . | . . . Slashing . | . . . Piercing . | . . . Sneak Attacks . | . . . Combat Hostiles . | . . . Follow-up Attacks . | . . . Damage Inflicted 228 | 38 108 82 Guns 211 | 38 108 65 Cannons . | . . . Explosions . | . . . Melee . | . . . Ramming 17 | . . 17 Kinetic 7 | . . 7 Thermal . | . . . Explosive . | . . . Electromagnetic 204 | 38 108 58 Impact . | . . . Slashing . | . . . Piercing . | . . . Highest Corruption 7 | . . 7 Average Corruption 5 | . . 5 Corruption Purged . | . . . Corruption Blocked . | . . . Overload Shots . | . . . Overflow Damage . | . . . Projectiles . | . . . Explosions . | . . . Melee . | . . . Knockbacks . | . . . Impact . | . . . Kinetic . | . . . Secondary . | . . . Self-Inflicted Damage 5 | . . 5 Shots . | . . . Rammed 2 | . . 2 Targets Rammed 5 | . . 5 Kicked 3 | . . 3 Crushed . | . . . Highest Temperature 60 | 42 54 60 Average Temperature 26 | 21 21 32 Received Heat Transfer 218 | 18 . 200 Siege Activations . | . . . Martial Activations . | . . . Shielding Activations . | . . . Robots Disrupted . | . . . Combat Hostiles . | . . . Robots Corrupted . | . . . Combat Hostiles . | . . . Parts Fried . | . . . Impact Corruptions . | . . . Robots Melted . | . . . Combat Hostiles . | . . . Parts Melted . | . . . Heat Transferred . | . . . Parts Sabotaged . | . . . Parts Stolen . | . . . Parts Stripped . | . . . Power Chain Reactions . | . . . Alert | -11 -10 -10 ------- Run | Yrd Mat Min Maximum Alert Level . | . . . Low Security (%) 100 | 100 100 100 Level 1 . | . . . Level 2 . | . . . Level 3 . | . . . Level 4 . | . . . Level 5 . | . . . High Security . | . . . Max Security . | . . . Peak Influence 70 | 20 27 70 Initial 13 | . 13 2 Average 12 | 1 10 15 Influence Increases 127 | 20 37 70 Destroy 0b10 Robot/C 80 | 20 . 60 Destroy 0b10 Robot/NC 5 | . 5 . Destroy Leader 12 | . 2 10 Disable Machine 30 | . 30 . Influence Decreases 127 | . 50 77 Entered New Map 12 | . 7 5 Time Decay 105 | . 43 62 Lost Part 10 | . . 10 Squads Dispatched 2 | . 2 . Investigation . | . . . Extermination . | . . . Reinforcement 2 | . 2 . Assault . | . . . Garrison . | . . . Intercept . | . . . Searches Triggered . | . . . Construction Impeded . | . . . Haulers Reinforced . | . . . Active Scanning Responses . | . . . Cargo Convoy Interrupts . | . . . Stealth | -11 -10 -10 --------- Run | Yrd Mat Min Distress Signals . | . . . Communications Jammed . | . . . Distress Signals . | . . . Times Spotted 18 | 1 4 13 Peak Tracking Total 17 | 1 2 17 Tactical Retreats 2 | . . 2 Traps | -11 -10 -10 ------- Run | Yrd Mat Min Traps Triggered . | . . . Indirectly . | . . . Trap Hack Attempts . | . . . Triggered . | . . . Disarmed . | . . . Reprogrammed . | . . . Reused . | . . . Traps Extracted . | . . . Installed . | . . . Triggered . | . . . Machines | -11 -10 -10 ---------- Run | Yrd Mat Min Machines Disabled 2 | . 2 . Max in Single Turn 1 | . 1 . Machines Repaired . | . . . Machines Dismantled . | . . . Machines Sabotaged . | . . . Overloaded Fab Kills . | . . . Hacking | -11 -10 -10 --------- Run | Yrd Mat Min Machines Accessed . | . . . Terminals . | . . . Fabricators . | . . . Repair Stations . | . . . Recycling Units . | . . . Scanalyzers . | . . . Garrison Access . | . . . Total Hacks . | . . . Successful . | . . . Failed . | . . . Catastrophic . | . . . Database Lockouts . | . . . Manual . | . . . Terminals . | . . . Fabricators . | . . . Repair Stations . | . . . Recycling Units . | . . . Scanalyzers . | . . . Garrison Access . | . . . Terminal Hacks . | . . . Fabricator Hacks . | . . . Repair Station Hacks . | . . . Recycling Unit Hacks . | . . . Scanalyzer . | . . . Garrison Access Hacks . | . . . Unauthorized Hacks . | . . . Terminals . | . . . Fabricators . | . . . Repair Stations . | . . . Recycling Units . | . . . Scanalyzers . | . . . Garrison Access . | . . . Data Cores Recovered . | . . . Used . | . . . Hacking Detections . | . . . Full Trace Events . | . . . Feedback Events . | . . . Feedback Blocked . | . . . Robot Schematics Acquired . | . . . Robots Built . | . . . Authchips . | . . . Time . | . . . Total Robot Build Rating . | . . . Part Schematics Acquired . | . . . Parts Built . | . . . Authchips . | . . . Time . | . . . Total Part Build Rating . | . . . Part Studies Acquired . | . . . Parts Repaired . | . . . Time . | . . . Parts Recycled . | . . . Recycled Matter . | . . . Retrieved Matter . | . . . Retrieved Components . | . . . Parts Scanalyzed . | . . . Part Schematics Acquired . | . . . Parts Damaged . | . . . Bothacking | -11 -10 -10 ------------ Run | Yrd Mat Min Used RIF Installer . | . . . Robots Hacked . | . . . Non-combat . | . . . Combat . | . . . Robot Hacks Applied . | . . . Relay Couplers Released . | . . . Fabnet Peak Effective % . | . . . Robots Rewired . | . . . Allies Hacked . | . . . Hacks Repelled . | . . . Allies | -11 -10 -10 -------- Run | Yrd Mat Min Total Allies . | . . . Largest Group . | . . . Highest-Rated Group . | . . . Highest-Rated Ally . | . . . Total Orders . | . . . Ally Attacks . | . . . Total Damage . | . . . Kills . | . . . Allies Corrupted . | . . . Allies Melted . | . . . Intel | -11 -10 -10 ------- Run | Yrd Mat Min Active Infowar (turns) . | . . . Robot Analysis Total . | . . . Derelict Logs Recovered . | . . . Drone Launches . | . . . Drone Recoveries . | . . . Exploration | -11 -10 -10 ------------- Run | Yrd Mat Min Turns Passed 516 | 72 119 325 Spaces Moved 467 | 66 107 294 Core 17 | 17 . . Treads . | . . . Legs 43 | . . 43 Wheels 375 | 49 75 251 Hover . | . . . Flight 32 | . 32 . Fastest Speed 50 | 50 80 80 Average Speed 85 | 72 91 85 Slowest Speed 120 | 80 120 120 Overloaded Moves . | . . . Propulsion Burnouts . | . . . Robots Hopped . | . . . Potential Cave-ins . | . . . Cave-ins Triggered . | . . . Exploration Rate (%) 30 | 5 23 63 Regions Visited 2 Branch Regions 1 Pre-discovered Areas . | . . . Known Exits Taken . | . . . Unknown Exits Taken 2 | 1 1 . Scrap Searched 1 | . . 1 Spaces Dug . | . . . Terrain Destroyed . | . . . Melee . | . . . Projectile . | . . . AOE . | . . . Terrain Rammed . | . . . Walls Destroyed . | . . . Machines Disabled . | . . . Actions | -11 -10 -10 --------- Run | Yrd Mat Min Total 553 | 86 115 352 Wait 42 | 6 . 36 Move 465 | 65 106 294 Hop . | . . . Pick Up 11 | 8 1 2 Fast Attach . | . . . Attach 7 | 5 . 2 Detach 1 | . 1 . Swap 7 | . 1 6 Drop 1 | . . 1 Fire 15 | 2 6 7 Melee . | . . . Ram 1 | . . 1 Kick 3 | . . 3 Crush . | . . . Escape Stasis . | . . . Rewire . | . . . Trap . | . . . Miscellaneous . | . . . Route ------- -11/Scrapyard -10/Materials -10/Mines History --------- Turn | Location | Event 2 | -11/Scrapyard | Met Revision 17 51 | -11/Scrapyard | Discovered new exit (range 8) 73 | -11/Scrapyard | Entered Materials 175 | -10/Materials | Discovered new exit (range 12) 192 | -10/Materials | Entered Mines 221 | -10/Mines | Found a damaged Exp. Sensor Array with a note attached 223 | -10/Mines | Found Prototype Device 231 | -10/Mines | Met a Derelict bent on vengeance 310 | -10/Mines | Build established: Mutant 411 | -10/Mines | Assembled infested the area 416 | -10/Mines | Assisted by a Guerilla fighting off Assembled 462 | -10/Mines | Core integrity fell below 50% 483 | -10/Mines | Core integrity fell below 20% 517 | -10/Mines | Core destroyed Last Messages --------------- QL-OM4(h) destroyed. Knocked back. Laser Drill disabled. Lgt. Ion Engine destroyed. EM Pulse Gun destroyed. Lgt. Assault Rifle destroyed. Knocked back. Lgt. Ion Engine destroyed. System corrupted by crushing effect (+4). as-95893 destroyed. Aluminum Leg destroyed. System corrupted by crushing effect (+3). Kicked as-08671. Ramming works as a last resort when unarmed or blocked, but can have serious negative consequences. Kicked as-08671. Kicked as-08671 out of the way. Aluminum Leg destroyed. Slammed into as-58104. Map ----- +----------------------------------------------------+ | ## ### ###?????????????????????????? | | ##### ## ####???????????????????????????? | | #??## #### #??????????????????????????????? | | ## #?## ### #???????###????????????????????? | | ?# ### ## #??????## ##???????????????????? | | ## ## ####??## #??????????#????? #? | | # #?## ########## ## #? | | ###### #?#$ #?? | | ## #????# #?# ! #??? | | # #### #???## #### ##### #### #???? | | #??# #???# ##???# #????????????? | | #??# #???# % ##????# #????????????? | | ### ##??# #???# #### ##?????# #????????????? | | ??######???# ##### #?# ##??????# #????????????? | | ???????????# ## #???????# #????????????? | | ?????????### ## ???????# #????????????? | | ??????#### ##### ???????# #????????????? | | ?###### #???## ######### #????????????? | | ## ##????##### #????????????? | | # """ ##?????????# ########????????????? | | # """ ##??###????# #???????????????????? | | ?# "" #?## #???# #???????????????????? | | ?## ### #?# ##?# #???????????????????? | | ??## ##?## #?# ### #???????????????????? | | ???# ##??## ##?# a## #???????????????????? | | ???# ##??## ##?# a@aa #???????????????????? | | ???# ##### #### ### #???????????????????? | | ???# #####?# #???????????????????? | | ???# ##### ## ##???# #???????????????????? | | ???# #???## #### #???# #???????????????????? | | ##?# #????# #??# #???# ???????????????????? | | ### #????# #??# #???###???????????????????? | | ## #????# #??# ##?????????????????????????? | | ##???# #??# ###??????????????????????????? | | % ]%! ##### #??# ????????????????????????????? | | #??####????????????????????????????? | | #??????????????????????????????????? | | ###########??????????????????????????????????? | | ##????????????????????????????????????????????? | | ##?????????????????????????????????????????????? | | ###??????????????????????????????????????????????? | | ?????????????????????????????????????????????????? | | ?????????????????????????????????????????????????? | | | | | | | | | | | | | | | +----------------------------------------------------+ Best States ------------- Heat Dissipation 25 Energy Generation 10 Energy Capacity 125 Matter Stores 300 Matter Capacity 300 Sight Range 16 Terrain Scan Density 10 Evasion (%) 55 Item Schematics ----------------- None Robot Schematics ------------------ None Fabricated ------------ Nothing Repaired ---------- Nothing Studied --------- None Alien Tech Used ----------------- None Achievements -------------- None Challenges ------------ None Game ------ Seed GammaInterdictionVibroblade Manual? 0 Play Time 00:13:07 Cumulative 1.1 hours Start 2026.06.25 @ 16:31:42 End 2026.06.25 @ 16:44:53 Sessions 1 Manual Loads 0 Difficulty Rogue Special Mode None Game No. 6 Rogue 6 Adventurer 0 Explorer 0 Win Type - Total 0 Types 0/0/0/0/0/0/0/0/0/0 Lore% 0 Gallery% 2 Achievement% 2 Wizard Run 0 Options --------- Layout 1 ASCII 0 Keyboard 0 Movement Numpad Keybinds 0 Fullscreen 1 Font 24/X11 Map View 50x35 Zoom Use 0% Tactical HUD 0 Map Filters NONE Filters NONE Steam 1 RUN: 764839c7-7b81-4131-8aff-3bd286183396